[Event "Titled Tuesday Blitz March 14 Late 2023"]
[White "Fule, Simon"]
[Black "Ardila, Oscar Humberto"]
[WhiteFideId "787515"]
[BlackFideId "4404742"]
[WhiteElo "2382"]
[BlackElo "1911"]
[Result "0-1"]
[Round "11"]
[TimeControl "180+2"]
[Date "2023.03.14"]
[WhiteClock "0:00:11"]
[BlackClock "0:00:19"]

1. e4 {[%clk 0:03:00]}  e5 {[%clk 0:02:53]} 2. Nf3 {[%clk 0:03:00]}  Nf6 {[%clk 0:02:51]} 3. Nc3 {[%clk 0:02:59]}  Nc6 {[%clk 0:02:51]} 4. Be2 {[%clk 0:02:59]}  Bb4 {[%clk 0:02:48]} 5. Nd5 {[%clk 0:02:54]}  Ba5 {[%clk 0:02:46]} 6. O-O {[%clk 0:02:51]}  O-O {[%clk 0:02:44]} 7. d3 {[%clk 0:02:47]}  h6 {[%clk 0:02:43]} 8. c3 {[%clk 0:02:44]}  d6 {[%clk 0:02:43]} 9. a4 {[%clk 0:02:44]}  a6 {[%clk 0:02:42]} 10. b4 {[%clk 0:02:43]}  Bb6 {[%clk 0:02:40]} 11. h3 {[%clk 0:02:35]}  Nxd5 {[%clk 0:02:38]} 12. exd5 {[%clk 0:02:35]}  Ne7 {[%clk 0:02:38]} 13. c4 {[%clk 0:02:35]}  f5 {[%clk 0:02:33]} 14. Be3 {[%clk 0:02:34]}  Bxe3 {[%clk 0:02:26]} 15. fxe3 {[%clk 0:02:35]}  Qe8 {[%clk 0:02:21]} 16. Qe1 {[%clk 0:02:14]}  g5 {[%clk 0:02:20]} 17. Nd2 {[%clk 0:02:07]}  Qg6 {[%clk 0:02:19]} 18. Qf2 {[%clk 0:01:44]}  f4 {[%clk 0:02:16]} 19. Ne4 {[%clk 0:01:33]}  Bf5 {[%clk 0:02:14]} 20. Bf3 {[%clk 0:01:30]}  Kh8 {[%clk 0:02:08]} 21. Kh2 {[%clk 0:01:19]}  h5 {[%clk 0:02:07]} 22. g4 {[%clk 0:01:02]}  fxg3+ {[%clk 0:01:58]} 23. Qxg3 {[%clk 0:01:01]}  h4 {[%clk 0:01:56]} 24. Qg2 {[%clk 0:00:32]}  Rg8 {[%clk 0:01:46]} 25. Rg1 {[%clk 0:00:30]}  Qh6 {[%clk 0:01:19]} 26. Raf1 {[%clk 0:00:24]}  Rg7 {[%clk 0:01:16]} 27. Bg4 {[%clk 0:00:22]}  Rf8 {[%clk 0:01:07]} 28. Nf2 {[%clk 0:00:16]}  Bh7 {[%clk 0:01:02]} 29. Ne4 {[%clk 0:00:12]}  Rgf7 {[%clk 0:00:59]} 30. Rxf7 {[%clk 0:00:11]}  Rxf7 {[%clk 0:00:59]} 31. Rf1 {[%clk 0:00:12]}  Bxe4 {[%clk 0:00:51]} 32. dxe4 {[%clk 0:00:12]}  Qf8 {[%clk 0:00:50]} 33. Rxf7 {[%clk 0:00:11]}  Qxf7 {[%clk 0:00:50]} 34. Qf3 {[%clk 0:00:12]}  Qxf3 {[%clk 0:00:41]} 35. Bxf3 {[%clk 0:00:12]}  Kg7 {[%clk 0:00:41]} 36. Kg2 {[%clk 0:00:12]}  Kf6 {[%clk 0:00:42]} 37. Bg4 {[%clk 0:00:12]}  b6 {[%clk 0:00:42]} 38. Kf2 {[%clk 0:00:12]}  a5 {[%clk 0:00:42]} 39. bxa5 {[%clk 0:00:11]}  bxa5 {[%clk 0:00:42]} 40. Ke2 {[%clk 0:00:11]}  c6 {[%clk 0:00:36]} 41. Bd7 {[%clk 0:00:10]}  c5 {[%clk 0:00:36]} 42. Kf3 {[%clk 0:00:09]}  Ng8 {[%clk 0:00:34]} 43. Be6 {[%clk 0:00:08]}  Nh6 {[%clk 0:00:34]} 44. Bd7 {[%clk 0:00:08]}  Ke7 {[%clk 0:00:34]} 45. Be6 {[%clk 0:00:08]}  Kd8 {[%clk 0:00:34]} 46. Bg4 {[%clk 0:00:07]}  Kc7 {[%clk 0:00:34]} 47. Be6 {[%clk 0:00:07]}  Kd8 {[%clk 0:00:34]} 48. Bg4 {[%clk 0:00:06]}  Ke7 {[%clk 0:00:34]} 49. Bc8 {[%clk 0:00:07]}  Kf6 {[%clk 0:00:35]} 50. Be6 {[%clk 0:00:07]}  Kg6 {[%clk 0:00:34]} 51. Bc8 {[%clk 0:00:07]}  Kh5 {[%clk 0:00:35]} 52. Bd7 {[%clk 0:00:08]}  Ng8 {[%clk 0:00:32]} 53. Be6 {[%clk 0:00:08]}  Nf6 {[%clk 0:00:32]} 54. Bf7+ {[%clk 0:00:08]}  Kh6 {[%clk 0:00:32]} 55. Be6 {[%clk 0:00:09]}  Kg6 {[%clk 0:00:32]} 56. Bf5+ {[%clk 0:00:09]}  Kg7 {[%clk 0:00:31]} 57. Be6 {[%clk 0:00:09]}  Nh5 {[%clk 0:00:30]} 58. Kg4 {[%clk 0:00:09]}  Kh6 {[%clk 0:00:27]} 59. Bf5 {[%clk 0:00:07]}  Ng3 {[%clk 0:00:26]} 60. Kf3 {[%clk 0:00:06]}  Kg7 {[%clk 0:00:25]} 61. Kg4 {[%clk 0:00:05]}  Kf6 {[%clk 0:00:25]} 62. Bh7 {[%clk 0:00:05]}  Nf1 {[%clk 0:00:24]} 63. Kf3 {[%clk 0:00:05]}  Nd2+ {[%clk 0:00:24]} 64. Ke2 {[%clk 0:00:05]}  Nxc4 {[%clk 0:00:24]} 65. Kd3 {[%clk 0:00:06]}  Nb6 {[%clk 0:00:24]} 66. Bf5 {[%clk 0:00:05]}  Nxa4 {[%clk 0:00:24]} 67. Bd7 {[%clk 0:00:06]}  Nb2+ {[%clk 0:00:23]} 68. Kc2 {[%clk 0:00:05]}  Nc4 {[%clk 0:00:22]} 69. Kd3 {[%clk 0:00:05]}  Nb6 {[%clk 0:00:22]} 70. Be6 {[%clk 0:00:05]}  Na8 {[%clk 0:00:21]} 71. Kc4 {[%clk 0:00:05]}  Nc7 {[%clk 0:00:21]} 72. Bd7 {[%clk 0:00:06]}  Ke7 {[%clk 0:00:20]} 73. Bc6 {[%clk 0:00:06]}  Kd8 {[%clk 0:00:20]} 74. Ba4 {[%clk 0:00:05]}  Kc8 {[%clk 0:00:20]} 75. Bd1 {[%clk 0:00:05]}  Kb7 {[%clk 0:00:21]} 76. Ba4 {[%clk 0:00:06]}  Kb6 {[%clk 0:00:21]} 77. Bd7 {[%clk 0:00:06]}  Na6 {[%clk 0:00:20]} 78. Bb5 {[%clk 0:00:05]}  Nb4 {[%clk 0:00:19]} 79. Bd7 {[%clk 0:00:05]}  Nc2 {[%clk 0:00:18]} 80. Kd3 {[%clk 0:00:06]}  Ne1+ {[%clk 0:00:18]} 81. Ke2 {[%clk 0:00:07]}  Nc2 {[%clk 0:00:17]} 82. Ba4 {[%clk 0:00:06]}  Na3 {[%clk 0:00:15]} 83. Kf3 {[%clk 0:00:06]}  Nb5 {[%clk 0:00:15]} 84. Kg4 {[%clk 0:00:06]}  Nc3 {[%clk 0:00:16]} 85. Kxg5 {[%clk 0:00:06]}  Nxa4 {[%clk 0:00:15]} 86. Kxh4 {[%clk 0:00:07]}  Nc3 {[%clk 0:00:16]} 87. Kg3 {[%clk 0:00:07]}  a4 {[%clk 0:00:16]} 88. h4 {[%clk 0:00:07]}  a3 {[%clk 0:00:17]} 89. h5 {[%clk 0:00:08]}  a2 {[%clk 0:00:18]} 90. h6 {[%clk 0:00:09]}  a1=Q {[%clk 0:00:19]} 91. h7 {[%clk 0:00:10]}  Qh1 {[%clk 0:00:19]} 92. h8=Q {[%clk 0:00:11]}  Qxh8 {[%clk 0:00:19]} 0-1


[Site "https://www.chess.com"]

[Event "Titled Tuesday Blitz March 14 Late 2023"]
[White "Todev, Simeon"]
[Black "Winslow, Elliott"]
[WhiteFideId "2925133"]
[BlackFideId "2002523"]
[WhiteElo "1938"]
[BlackElo "2224"]
[Result "0-1"]
[Round "11"]
[TimeControl "180+2"]
[Date "2023.03.14"]
[WhiteClock "0:00:01"]
[BlackClock "0:00:37"]

1. e4 {[%clk 0:02:55]}  c5 {[%clk 0:02:55]} 2. Nf3 {[%clk 0:02:56]}  d6 {[%clk 0:02:55]} 3. c3 {[%clk 0:02:54]}  Nf6 {[%clk 0:02:54]} 4. Bd3 {[%clk 0:02:53]}  Bg4 {[%clk 0:02:52]} 5. Bc2 {[%clk 0:02:53]}  Nc6 {[%clk 0:02:48]} 6. O-O {[%clk 0:02:53]}  e5 {[%clk 0:02:44]} 7. h3 {[%clk 0:02:53]}  Bxf3 {[%clk 0:02:43]} 8. Qxf3 {[%clk 0:02:54]}  Be7 {[%clk 0:02:39]} 9. Na3 {[%clk 0:02:51]}  O-O {[%clk 0:02:38]} 10. Nc4 {[%clk 0:02:51]}  d5 {[%clk 0:02:21]} 11. exd5 {[%clk 0:02:43]}  Qxd5 {[%clk 0:02:17]} 12. Qxd5 {[%clk 0:02:42]}  Nxd5 {[%clk 0:02:17]} 13. Be4 {[%clk 0:02:43]}  Rad8 {[%clk 0:02:15]} 14. d3 {[%clk 0:02:40]}  f5 {[%clk 0:02:02]} 15. Bxd5+ {[%clk 0:02:37]}  Rxd5 {[%clk 0:02:01]} 16. Re1 {[%clk 0:02:30]}  Rxd3 {[%clk 0:01:55]} 17. Be3 {[%clk 0:02:18]}  b6 {[%clk 0:01:53]} 18. f4 {[%clk 0:02:15]}  e4 {[%clk 0:01:44]} 19. Rad1 {[%clk 0:02:11]}  Rfd8 {[%clk 0:01:43]} 20. Rxd3 {[%clk 0:02:07]}  Rxd3 {[%clk 0:01:44]} 21. Kf2 {[%clk 0:02:04]}  Bh4+ {[%clk 0:01:34]} 22. g3 {[%clk 0:02:02]}  Bf6 {[%clk 0:01:34]} 23. Ke2 {[%clk 0:01:53]}  Kf7 {[%clk 0:01:34]} 24. Bf2 {[%clk 0:01:49]}  Ke6 {[%clk 0:01:30]} 25. Be3 {[%clk 0:01:34]}  g6 {[%clk 0:01:28]} 26. Bc1 {[%clk 0:01:27]}  Rxg3 {[%clk 0:01:25]} 27. Rd1 {[%clk 0:01:22]}  Rxh3 {[%clk 0:01:23]} 28. Rd6+ {[%clk 0:01:21]}  Ke7 {[%clk 0:01:23]} 29. Rxc6 {[%clk 0:01:21]}  h6 {[%clk 0:01:12]} 30. Rc7+ {[%clk 0:01:10]}  Ke6 {[%clk 0:01:12]} 31. Rc6+ {[%clk 0:01:09]}  Ke7 {[%clk 0:01:12]} 32. Be3 {[%clk 0:01:04]}  g5 {[%clk 0:01:11]} 33. Rc7+ {[%clk 0:00:52]}  Ke6 {[%clk 0:01:10]} 34. Rxa7 {[%clk 0:00:47]}  Rh2+ {[%clk 0:01:07]} 35. Kd1 {[%clk 0:00:41]}  g4 {[%clk 0:01:04]} 36. Rb7 {[%clk 0:00:23]}  h5 {[%clk 0:00:59]} 37. Rxb6+ {[%clk 0:00:22]}  Ke7 {[%clk 0:00:59]} 38. Bxc5+ {[%clk 0:00:22]}  Kf7 {[%clk 0:00:59]} 39. Nd6+ {[%clk 0:00:22]}  Ke6 {[%clk 0:00:54]} 40. Nxe4+ {[%clk 0:00:09]}  Kd5 {[%clk 0:00:53]} 41. Nxf6+ {[%clk 0:00:06]}  Kxc5 {[%clk 0:00:53]} 42. Nd7+ {[%clk 0:00:06]}  Kd5 {[%clk 0:00:47]} 43. b3 {[%clk 0:00:03]}  g3 {[%clk 0:00:45]} 44. Nf6+ {[%clk 0:00:02]}  Kc5 {[%clk 0:00:45]} 45. Nd7+ {[%clk 0:00:02]}  Kd5 {[%clk 0:00:45]} 46. c4+ {[%clk 0:00:02]}  Kd4 {[%clk 0:00:45]} 47. Rd6+ {[%clk 0:00:02]}  Kc3 {[%clk 0:00:45]} 48. Ke1 {[%clk 0:00:02]}  h4 {[%clk 0:00:41]} 49. c5 {[%clk 0:00:03]}  Rxa2 {[%clk 0:00:37]} 50. c6 {[%clk 0:00:02]}  g2 {[%clk 0:00:37]} 51. Rd1 {[%clk 0:00:01]} 0-1


[Site "https://www.chess.com"]

[Event "Titled Tuesday Blitz March 14 Late 2023"]
[White "Sabar, Ethmane Daouda"]
[Black "Friedel, Tom"]
[WhiteFideId "19600097"]
[BlackFideId "2002108"]
[WhiteElo "1950"]
[BlackElo "2272"]
[Result "1/2-1/2"]
[Round "11"]
[TimeControl "180+2"]
[Date "2023.03.14"]
[WhiteClock "0:00:20"]
[BlackClock "0:00:07"]

1. e4 {[%clk 0:03:00]}  c6 {[%clk 0:02:59]} 2. d3 {[%clk 0:03:00]}  d5 {[%clk 0:03:00]} 3. Nd2 {[%clk 0:03:01]}  e5 {[%clk 0:03:00]} 4. Ngf3 {[%clk 0:03:00]}  Bd6 {[%clk 0:03:00]} 5. b3 {[%clk 0:02:59]}  Nf6 {[%clk 0:03:00]} 6. Bb2 {[%clk 0:03:00]}  Nbd7 {[%clk 0:02:59]} 7. c4 {[%clk 0:02:56]}  O-O {[%clk 0:02:57]} 8. Be2 {[%clk 0:02:46]}  dxe4 {[%clk 0:02:42]} 9. dxe4 {[%clk 0:02:44]}  Re8 {[%clk 0:02:34]} 10. O-O {[%clk 0:02:44]}  a5 {[%clk 0:02:32]} 11. a4 {[%clk 0:02:42]}  Qc7 {[%clk 0:02:32]} 12. h3 {[%clk 0:02:41]}  Nc5 {[%clk 0:02:31]} 13. Qc2 {[%clk 0:02:39]}  Ne6 {[%clk 0:02:25]} 14. g3 {[%clk 0:02:35]}  Nc5 {[%clk 0:02:18]} 15. Kg2 {[%clk 0:02:35]}  h6 {[%clk 0:02:07]} 16. Rad1 {[%clk 0:02:33]}  Be6 {[%clk 0:02:05]} 17. Ne1 {[%clk 0:02:16]}  Rad8 {[%clk 0:02:03]} 18. f3 {[%clk 0:02:12]}  Qc8 {[%clk 0:01:59]} 19. Rh1 {[%clk 0:02:09]}  b6 {[%clk 0:01:45]} 20. Nd3 {[%clk 0:02:09]}  Nxd3 {[%clk 0:01:44]} 21. Qxd3 {[%clk 0:02:10]}  Bc5 {[%clk 0:01:34]} 22. Qc2 {[%clk 0:02:10]}  Bd4 {[%clk 0:01:34]} 23. Nf1 {[%clk 0:02:07]}  Bxb2 {[%clk 0:01:10]} 24. Qxb2 {[%clk 0:02:08]}  Rxd1 {[%clk 0:01:10]} 25. Bxd1 {[%clk 0:02:09]}  Rd8 {[%clk 0:01:10]} 26. Be2 {[%clk 0:02:07]}  Qc7 {[%clk 0:01:07]} 27. Ne3 {[%clk 0:02:04]}  Rd4 {[%clk 0:01:05]} 28. Rd1 {[%clk 0:01:57]}  Qd6 {[%clk 0:01:05]} 29. Rxd4 {[%clk 0:01:55]}  exd4 {[%clk 0:01:06]} 30. Nd1 {[%clk 0:01:49]}  c5 {[%clk 0:00:57]} 31. Nf2 {[%clk 0:01:47]}  Bd7 {[%clk 0:00:42]} 32. Nd3 {[%clk 0:01:46]}  Qe6 {[%clk 0:00:37]} 33. g4 {[%clk 0:01:44]}  Bc6 {[%clk 0:00:35]} 34. Qd2 {[%clk 0:01:40]}  Nd7 {[%clk 0:00:32]} 35. Kf2 {[%clk 0:01:28]}  Qd6 {[%clk 0:00:27]} 36. Qf4 {[%clk 0:01:21]}  Qxf4 {[%clk 0:00:21]} 37. Nxf4 {[%clk 0:01:22]}  f6 {[%clk 0:00:21]} 38. Nd5 {[%clk 0:01:15]}  Kf7 {[%clk 0:00:19]} 39. f4 {[%clk 0:01:14]}  g5 {[%clk 0:00:18]} 40. Bf3 {[%clk 0:00:54]}  gxf4 {[%clk 0:00:16]} 41. Nxf4 {[%clk 0:00:53]}  Ne5 {[%clk 0:00:16]} 42. Ke2 {[%clk 0:00:50]}  Bb7 {[%clk 0:00:08]} 43. Nd3 {[%clk 0:00:47]}  Ke6 {[%clk 0:00:07]} 44. Nf4+ {[%clk 0:00:46]}  Kf7 {[%clk 0:00:07]} 45. Bg2 {[%clk 0:00:42]}  Bc6 {[%clk 0:00:07]} 46. Kd2 {[%clk 0:00:38]}  Bb7 {[%clk 0:00:07]} 47. Ke2 {[%clk 0:00:24]}  Bc6 {[%clk 0:00:07]} 48. Kd2 {[%clk 0:00:20]}  Bb7 {[%clk 0:00:07]} 49. Ke2 {[%clk 0:00:20]} 1/2-1/2


[Site "https://www.chess.com"]

[Event "Titled Tuesday Blitz March 14 Late 2023"]
[White "Allansdottir, Rakel Elaisa"]
[Black "Buchenau, Frank"]
[WhiteFideId "2323974"]
[BlackFideId "4604350"]
[WhiteElo "2254"]
[BlackElo "2157"]
[Result "0-1"]
[Round "11"]
[TimeControl "180+2"]
[Date "2023.03.14"]
[WhiteClock "0:01:22"]
[BlackClock "0:01:15"]

1. f4 {[%clk 0:03:00]}  d5 {[%clk 0:02:59]} 2. Nf3 {[%clk 0:02:58]}  g6 {[%clk 0:02:59]} 3. e3 {[%clk 0:02:55]}  Bg7 {[%clk 0:02:59]} 4. d4 {[%clk 0:02:51]}  Nf6 {[%clk 0:02:58]} 5. Bd3 {[%clk 0:02:51]}  Bf5 {[%clk 0:02:58]} 6. O-O {[%clk 0:02:47]}  O-O {[%clk 0:02:57]} 7. c3 {[%clk 0:02:45]}  Nbd7 {[%clk 0:02:55]} 8. Ne5 {[%clk 0:02:31]}  c5 {[%clk 0:02:51]} 9. Bxf5 {[%clk 0:02:27]}  gxf5 {[%clk 0:02:50]} 10. Nd2 {[%clk 0:02:27]}  e6 {[%clk 0:02:47]} 11. Ndf3 {[%clk 0:02:27]}  Ne4 {[%clk 0:02:45]} 12. Bd2 {[%clk 0:02:27]}  f6 {[%clk 0:02:34]} 13. Nd3 {[%clk 0:02:23]}  c4 {[%clk 0:02:32]} 14. Nf2 {[%clk 0:02:15]}  Kh8 {[%clk 0:02:27]} 15. b3 {[%clk 0:02:07]}  b5 {[%clk 0:02:24]} 16. Qc2 {[%clk 0:02:03]}  Rg8 {[%clk 0:02:21]} 17. a4 {[%clk 0:01:59]}  cxb3 {[%clk 0:02:16]} 18. Qxb3 {[%clk 0:01:58]}  bxa4 {[%clk 0:02:15]} 19. Rxa4 {[%clk 0:01:56]}  Nb6 {[%clk 0:02:13]} 20. Ra6 {[%clk 0:01:55]}  Nc4 {[%clk 0:02:09]} 21. Bc1 {[%clk 0:01:52]}  Qd7 {[%clk 0:01:53]} 22. Nd3 {[%clk 0:01:51]}  Rgb8 {[%clk 0:01:48]} 23. Qa2 {[%clk 0:01:48]}  Nxc3 {[%clk 0:01:44]} 24. Qa1 {[%clk 0:01:45]}  Ne4 {[%clk 0:01:31]} 25. Nd2 {[%clk 0:01:38]}  Nexd2 {[%clk 0:01:25]} 26. Nc5 {[%clk 0:01:37]}  Qf7 {[%clk 0:01:17]} 27. Nxe6 {[%clk 0:01:22]}  Nxf1 {[%clk 0:01:15]} 28. Nxg7 {[%clk 0:01:22]} 0-1


[Site "https://www.chess.com"]

[Event "Titled Tuesday Blitz March 14 Late 2023"]
[White "Floresvillar Gonzalez, Luis Migu"]
[Black "Kostiukov, Alexandr"]
[WhiteFideId "5100542"]
[BlackFideId "14108100"]
[WhiteElo "2040"]
[BlackElo "2202"]
[Result "1-0"]
[Round "11"]
[TimeControl "180+2"]
[Date "2023.03.14"]
[WhiteClock "0:01:16"]
[BlackClock "0:01:08"]

1. e4 {[%clk 0:03:00]}  c5 {[%clk 0:02:59]} 2. d4 {[%clk 0:02:59]}  cxd4 {[%clk 0:02:58]} 3. c3 {[%clk 0:02:59]}  g6 {[%clk 0:02:58]} 4. cxd4 {[%clk 0:02:58]}  d5 {[%clk 0:02:59]} 5. exd5 {[%clk 0:02:57]}  Nf6 {[%clk 0:02:58]} 6. Bc4 {[%clk 0:02:55]}  Nxd5 {[%clk 0:02:58]} 7. Nc3 {[%clk 0:02:55]}  Nxc3 {[%clk 0:02:58]} 8. bxc3 {[%clk 0:02:54]}  Bg7 {[%clk 0:02:51]} 9. Qf3 {[%clk 0:02:54]}  O-O {[%clk 0:02:49]} 10. Ne2 {[%clk 0:02:54]}  Nc6 {[%clk 0:02:38]} 11. O-O {[%clk 0:02:53]}  Bf5 {[%clk 0:02:24]} 12. Ba3 {[%clk 0:02:47]}  Na5 {[%clk 0:02:14]} 13. Bd3 {[%clk 0:02:33]}  Bxd3 {[%clk 0:02:09]} 14. Qxd3 {[%clk 0:02:33]}  Rc8 {[%clk 0:02:10]} 15. Rfe1 {[%clk 0:02:15]}  Nc4 {[%clk 0:02:06]} 16. Bc1 {[%clk 0:02:14]}  Qa5 {[%clk 0:02:03]} 17. Bf4 {[%clk 0:01:56]}  Rfd8 {[%clk 0:02:01]} 18. h3 {[%clk 0:01:53]}  e5 {[%clk 0:01:57]} 19. Bg5 {[%clk 0:01:51]}  e4 {[%clk 0:01:55]} 20. Bxd8 {[%clk 0:01:41]}  exd3 {[%clk 0:01:36]} 21. Bxa5 {[%clk 0:01:40]}  dxe2 {[%clk 0:01:35]} 22. Bb4 {[%clk 0:01:36]}  a5 {[%clk 0:01:32]} 23. Bc5 {[%clk 0:01:31]}  b6 {[%clk 0:01:31]} 24. Be7 {[%clk 0:01:31]}  Re8 {[%clk 0:01:31]} 25. Rxe2 {[%clk 0:01:28]}  b5 {[%clk 0:01:27]} 26. Rae1 {[%clk 0:01:26]}  Bh6 {[%clk 0:01:17]} 27. Bc5 {[%clk 0:01:23]}  Rxe2 {[%clk 0:01:14]} 28. Rxe2 {[%clk 0:01:23]}  Bd2 {[%clk 0:01:15]} 29. d5 {[%clk 0:01:17]}  Bxc3 {[%clk 0:01:07]} 30. d6 {[%clk 0:01:17]}  Bf6 {[%clk 0:01:08]} 31. d7 {[%clk 0:01:16]} 1-0


[Site "https://www.chess.com"]

[Event "Titled Tuesday Blitz March 14 Late 2023"]
[White "Khatena, Moshe"]
[Black "Skaric, Djuro"]
[WhiteFideId "2010461"]
[BlackFideId "934569"]
[WhiteElo "2220"]
[BlackElo "2282"]
[Result "0-1"]
[Round "11"]
[TimeControl "180+2"]
[Date "2023.03.14"]
[WhiteClock "0:00:33"]
[BlackClock "0:01:49"]

1. g4 {[%clk 0:03:00]}  g6 {[%clk 0:02:48]} 2. Bg2 {[%clk 0:03:00]}  Bg7 {[%clk 0:02:48]} 3. d4 {[%clk 0:03:01]}  d6 {[%clk 0:02:47]} 4. e4 {[%clk 0:03:00]}  Nf6 {[%clk 0:02:46]} 5. g5 {[%clk 0:02:55]}  Nh5 {[%clk 0:02:45]} 6. Ne2 {[%clk 0:02:55]}  Nc6 {[%clk 0:02:44]} 7. d5 {[%clk 0:02:53]}  Ne5 {[%clk 0:02:43]} 8. O-O {[%clk 0:02:44]}  O-O {[%clk 0:02:42]} 9. Nbc3 {[%clk 0:02:41]}  Nc4 {[%clk 0:02:40]} 10. b3 {[%clk 0:02:39]}  Nb6 {[%clk 0:02:39]} 11. Be3 {[%clk 0:02:35]}  e5 {[%clk 0:02:39]} 12. Qd2 {[%clk 0:02:24]}  f5 {[%clk 0:02:33]} 13. gxf6 {[%clk 0:02:24]}  Qxf6 {[%clk 0:02:31]} 14. a4 {[%clk 0:02:23]}  a6 {[%clk 0:02:29]} 15. a5 {[%clk 0:02:22]}  Nd7 {[%clk 0:02:28]} 16. b4 {[%clk 0:02:05]}  Nf4 {[%clk 0:02:27]} 17. f3 {[%clk 0:01:44]}  h5 {[%clk 0:02:26]} 18. Rae1 {[%clk 0:01:32]}  g5 {[%clk 0:02:23]} 19. Ng3 {[%clk 0:01:24]}  Nxg2 {[%clk 0:02:19]} 20. Kxg2 {[%clk 0:01:22]}  Qg6 {[%clk 0:02:17]} 21. Bxg5 {[%clk 0:01:18]}  Nf6 {[%clk 0:02:14]} 22. h4 {[%clk 0:01:17]}  Bd7 {[%clk 0:02:09]} 23. Kh2 {[%clk 0:01:15]}  Nh7 {[%clk 0:02:09]} 24. Be3 {[%clk 0:01:12]}  Rf7 {[%clk 0:02:08]} 25. Rg1 {[%clk 0:01:12]}  Qf6 {[%clk 0:02:05]} 26. Qe2 {[%clk 0:00:52]}  Qxh4+ {[%clk 0:02:04]} 27. Kg2 {[%clk 0:00:52]}  Bh3+ {[%clk 0:02:04]} 28. Kf2 {[%clk 0:00:51]}  Raf8 {[%clk 0:02:05]} 29. Rh1 {[%clk 0:00:51]}  Qg4 {[%clk 0:02:01]} 30. Nf5 {[%clk 0:00:49]}  Rxf5 {[%clk 0:01:58]} 31. exf5 {[%clk 0:00:46]}  Qh4+ {[%clk 0:01:50]} 32. Kg1 {[%clk 0:00:37]}  Qg3+ {[%clk 0:01:50]} 33. Qg2 {[%clk 0:00:33]}  Qxg2# {[%clk 0:01:49]} 0-1


[Site "https://www.chess.com"]

[Event "Titled Tuesday Blitz March 14 Late 2023"]
[White "Gamage, Wanshini Vidusama"]
[Black "Comas Fabrego, Lluis"]
[WhiteFideId "9953752"]
[BlackFideId "2200325"]
[WhiteElo "2253"]
[BlackElo "2523"]
[Result "0-1"]
[Round "11"]
[TimeControl "180+2"]
[Date "2023.03.14"]
[WhiteClock "0:00:19"]
[BlackClock "0:00:28"]

1. e4 {[%clk 0:03:00]}  c5 {[%clk 0:02:59]} 2. Nf3 {[%clk 0:03:01]}  d6 {[%clk 0:02:59]} 3. d4 {[%clk 0:03:01]}  cxd4 {[%clk 0:03:00]} 4. Nxd4 {[%clk 0:03:02]}  Nf6 {[%clk 0:03:00]} 5. Nc3 {[%clk 0:03:03]}  g6 {[%clk 0:03:00]} 6. Be3 {[%clk 0:03:02]}  Bg7 {[%clk 0:03:01]} 7. f3 {[%clk 0:03:02]}  O-O {[%clk 0:03:01]} 8. Qd2 {[%clk 0:03:02]}  Nc6 {[%clk 0:03:02]} 9. O-O-O {[%clk 0:03:02]}  d5 {[%clk 0:03:02]} 10. exd5 {[%clk 0:03:02]}  Nxd5 {[%clk 0:03:01]} 11. Nxc6 {[%clk 0:03:03]}  bxc6 {[%clk 0:03:01]} 12. Bd4 {[%clk 0:03:03]}  Nxc3 {[%clk 0:03:00]} 13. Qxc3 {[%clk 0:03:03]}  Bh6+ {[%clk 0:02:59]} 14. Be3 {[%clk 0:03:03]}  Bxe3+ {[%clk 0:02:59]} 15. Qxe3 {[%clk 0:03:04]}  Qb6 {[%clk 0:02:59]} 16. Re1 {[%clk 0:03:03]}  Be6 {[%clk 0:02:55]} 17. h4 {[%clk 0:02:53]}  Rfb8 {[%clk 0:02:51]} 18. b3 {[%clk 0:02:53]}  a5 {[%clk 0:02:43]} 19. a4 {[%clk 0:02:43]}  h5 {[%clk 0:02:13]} 20. g4 {[%clk 0:02:42]}  Qb4 {[%clk 0:01:23]} 21. gxh5 {[%clk 0:02:12]}  Qa3+ {[%clk 0:01:23]} 22. Kd1 {[%clk 0:02:13]}  Bxb3 {[%clk 0:01:17]} 23. Kd2 {[%clk 0:01:26]}  Qb2 {[%clk 0:01:10]} 24. Qc3 {[%clk 0:01:24]}  Rd8+ {[%clk 0:01:06]} 25. Bd3 {[%clk 0:01:24]}  Rxd3+ {[%clk 0:00:43]} 26. Qxd3 {[%clk 0:01:05]}  Bxc2 {[%clk 0:00:43]} 27. Qe3 {[%clk 0:00:27]}  Rd8+ {[%clk 0:00:30]} 28. Ke2 {[%clk 0:00:20]}  Bd3+ {[%clk 0:00:30]} 29. Kd1 {[%clk 0:00:19]}  Qc2# {[%clk 0:00:28]} 0-1


[Site "https://www.chess.com"]

[Event "Titled Tuesday Blitz March 14 Late 2023"]
[White "Curtis, John"]
[Black "Cramling Bellon, Anna"]
[WhiteFideId "3200256"]
[BlackFideId "32009232"]
[WhiteElo "2203"]
[BlackElo "1972"]
[Result "0-1"]
[Round "11"]
[TimeControl "180+2"]
[Date "2023.03.14"]
[WhiteClock "0:00:02"]
[BlackClock "0:01:01"]

1. e4 {[%clk 0:01:58]}  c5 {[%clk 0:02:57]} 2. Nf3 {[%clk 0:01:57]}  e6 {[%clk 0:02:55]} 3. d4 {[%clk 0:01:56]}  cxd4 {[%clk 0:02:56]} 4. Nxd4 {[%clk 0:01:57]}  Nf6 {[%clk 0:02:55]} 5. Nc3 {[%clk 0:01:55]}  Nc6 {[%clk 0:02:53]} 6. Nxc6 {[%clk 0:01:55]}  bxc6 {[%clk 0:02:52]} 7. e5 {[%clk 0:01:56]}  Nd5 {[%clk 0:02:52]} 8. Ne4 {[%clk 0:01:56]}  Qc7 {[%clk 0:02:52]} 9. f4 {[%clk 0:01:56]}  Qb6 {[%clk 0:02:51]} 10. Qd3 {[%clk 0:01:52]}  c5 {[%clk 0:02:30]} 11. a3 {[%clk 0:01:49]}  Bb7 {[%clk 0:02:27]} 12. Be2 {[%clk 0:01:45]}  f5 {[%clk 0:02:04]} 13. exf6 {[%clk 0:01:35]}  gxf6 {[%clk 0:02:04]} 14. c4 {[%clk 0:00:44]}  f5 {[%clk 0:01:51]} 15. Ng5 {[%clk 0:00:37]}  Nf6 {[%clk 0:01:42]} 16. Bf3 {[%clk 0:00:19]}  h6 {[%clk 0:01:36]} 17. Bxb7 {[%clk 0:00:19]}  Qxb7 {[%clk 0:01:36]} 18. Nf3 {[%clk 0:00:19]}  O-O-O {[%clk 0:01:34]} 19. O-O {[%clk 0:00:18]}  d5 {[%clk 0:01:34]} 20. b4 {[%clk 0:00:16]}  Ne4 {[%clk 0:01:18]} 21. b5 {[%clk 0:00:03]}  Bg7 {[%clk 0:01:13]} 22. Ne5 {[%clk 0:00:02]}  dxc4 {[%clk 0:01:01]} 0-1


[Site "https://www.chess.com"]